[Event "Live Chess"]
[Site "Chess.com"]
[Date "2023.05.20"]
[Round "-"]
[White "Rusty_Bridges"]
[Black "ACx04"]
[Result "1-0"]
[WhiteElo "1419"]
[BlackElo "415"]
[TimeControl "300"]
[EndTime "14:22:48 PDT"]
[Termination "Rusty_Bridges won by checkmate"]

1. e4 {[%clk 0:04:53.2]} 1... e5 {[%clk 0:04:58.6]} 2. f4 {[%clk 0:04:51.4]}
2... exf4 {[%clk 0:04:57.2]} 3. Nf3 {[%clk 0:04:50.3]} 3... Qf6 {[%clk
0:04:54.1]} 4. Bc4 {[%clk 0:04:40.9]} 4... h6 {[%clk 0:04:51]} 5. O-O {[%clk
0:04:39]} 5... Bc5+ {[%clk 0:04:46.9]} 6. d4 {[%clk 0:04:34.3]} 6... Bb6 {[%clk
0:04:45.5]} 7. Ne5 {[%clk 0:04:24.5]} 7... Ne7 {[%clk 0:04:41.5]} 8. Rxf4 {[%clk
0:04:12.3]} 8... Qd6 {[%clk 0:04:31.9]} 9. Bxf7+ {[%clk 0:03:49.5]} 9... Kf8
{[%clk 0:04:26.5]} 10. Bh5+ {[%clk 0:03:34.7]} 10... Kg8 {[%clk 0:04:21.7]} 11.
c3 {[%clk 0:03:30.3]} 11... Nbc6 {[%clk 0:04:16]} 12. Nf7 {[%clk 0:03:20.8]}
12... Qxf4 {[%clk 0:04:11.2]} 13. Bxf4 {[%clk 0:03:19]} 13... Rh7 {[%clk
0:04:04.1]} 14. Bg6 {[%clk 0:03:16.8]} 14... d5 {[%clk 0:03:58.3]} 15. Bxh7+
{[%clk 0:03:14.7]} 15... Kxh7 {[%clk 0:03:57]} 16. e5 {[%clk 0:03:08.9]} 16...
Nf5 {[%clk 0:03:54]} 17. Qd3 {[%clk 0:03:04.4]} 17... g6 {[%clk 0:03:51.7]} 18.
Nd2 {[%clk 0:03:01.2]} 18... a6 {[%clk 0:03:42.8]} 19. Nf3 {[%clk 0:02:52.8]}
19... a5 {[%clk 0:03:34.1]} 20. Re1 {[%clk 0:02:48.6]} 20... g5 {[%clk
0:03:26.4]} 21. Bg3 {[%clk 0:02:44.6]} 21... Kg7 {[%clk 0:03:05.6]} 22. e6
{[%clk 0:02:41.1]} 22... Nce7 {[%clk 0:03:02.9]} 23. Bf2 {[%clk 0:02:27.5]}
23... c5 {[%clk 0:02:57.6]} 24. g4 {[%clk 0:02:24.4]} 24... Nh4 {[%clk
0:02:54.3]} 25. Nxh4 {[%clk 0:02:22.8]} 25... gxh4 {[%clk 0:02:52.8]} 26. Bxh4
{[%clk 0:02:14.7]} 26... Nc6 {[%clk 0:02:49.4]} 27. Qf3 {[%clk 0:02:02.9]} 27...
Bxe6 {[%clk 0:02:35.2]} 28. Rxe6 {[%clk 0:01:55.9]} 28... Nd8 {[%clk 0:02:20.5]}
29. Qf6+ {[%clk 0:01:53.2]} 29... Kf8 {[%clk 0:02:18.4]} 30. Nxd8+ {[%clk
0:01:51.6]} 30... Kg8 {[%clk 0:02:14.3]} 31. Qf7+ {[%clk 0:01:49.9]} 31... Kh8
{[%clk 0:02:12.9]} 32. Bf6# {[%clk 0:01:48.9]} 1-0

[Event "Live Chess"]
[Site "Chess.com"]
[Date "2023.05.20"]
[Round "-"]
[White "JoeyCage"]
[Black "jennybobby44"]
[Result "1/2-1/2"]
[WhiteElo "2303"]
[BlackElo "1854"]
[TimeControl "300"]
[EndTime "14:22:58 PDT"]
[Termination "Game drawn - insufficient material"]

1. e4 {[%clk 0:04:53.5]} 1... c5 {[%clk 0:04:58.7]} 2. Nf3 {[%clk 0:04:52.2]}
2... d6 {[%clk 0:04:58.2]} 3. d4 {[%clk 0:04:51.2]} 3... cxd4 {[%clk 0:04:58.1]}
4. Nxd4 {[%clk 0:04:51.1]} 4... Nf6 {[%clk 0:04:58]} 5. Nc3 {[%clk 0:04:50.3]}
5... a6 {[%clk 0:04:57.8]} 6. g3 {[%clk 0:04:47.4]} 6... g6 {[%clk 0:04:55.8]}
7. Bg2 {[%clk 0:04:46.1]} 7... Bg7 {[%clk 0:04:55.3]} 8. O-O {[%clk 0:04:45.3]}
8... O-O {[%clk 0:04:54.6]} 9. h3 {[%clk 0:04:44.4]} 9... Qc7 {[%clk 0:04:53.5]}
10. Bg5 {[%clk 0:04:37.2]} 10... h6 {[%clk 0:04:50.2]} 11. Bxf6 {[%clk
0:04:35.5]} 11... Bxf6 {[%clk 0:04:50.1]} 12. Nd5 {[%clk 0:04:34.2]} 12... Qd8
{[%clk 0:04:41]} 13. Nxf6+ {[%clk 0:04:32.4]} 13... exf6 {[%clk 0:04:40.9]} 14.
c4 {[%clk 0:04:30]} 14... Nc6 {[%clk 0:04:38.2]} 15. Qd2 {[%clk 0:04:26.8]}
15... Qe7 {[%clk 0:04:31.7]} 16. Rad1 {[%clk 0:04:19.9]} 16... Nxd4 {[%clk
0:04:22]} 17. Qxd4 {[%clk 0:04:18.3]} 17... Be6 {[%clk 0:04:16.6]} 18. b3 {[%clk
0:04:15.3]} 18... Rad8 {[%clk 0:04:11.5]} 19. Rd2 {[%clk 0:04:14]} 19... Rd7
{[%clk 0:03:50.2]} 20. Rfd1 {[%clk 0:04:11.6]} 20... Rfd8 {[%clk 0:03:49.3]} 21.
Qb6 {[%clk 0:04:09.7]} 21... Kg7 {[%clk 0:03:36.9]} 22. Rd4 {[%clk 0:03:57.9]}
22... f5 {[%clk 0:03:34.5]} 23. exf5 {[%clk 0:03:41.3]} 23... Bxf5 {[%clk
0:03:33.3]} 24. R4d2 {[%clk 0:03:36.3]} 24... h5 {[%clk 0:03:26.5]} 25. Qd4+
{[%clk 0:03:34.1]} 25... Qf6 {[%clk 0:03:14.7]} 26. f3 {[%clk 0:03:25.6]} 26...
Qxd4+ {[%clk 0:03:12.8]} 27. Rxd4 {[%clk 0:03:24.2]} 27... Be6 {[%clk
0:03:06.8]} 28. g4 {[%clk 0:03:20.7]} 28... hxg4 {[%clk 0:03:05]} 29. hxg4
{[%clk 0:03:17.9]} 29... d5 {[%clk 0:03:03.1]} 30. c5 {[%clk 0:03:13.8]} 30...
Rc7 {[%clk 0:03:02.2]} 31. b4 {[%clk 0:03:12.4]} 31... a5 {[%clk 0:03:01.4]} 32.
a3 {[%clk 0:03:11]} 32... axb4 {[%clk 0:03:00.6]} 33. axb4 {[%clk 0:03:10.1]}
33... b6 {[%clk 0:02:56.5]} 34. cxb6 {[%clk 0:02:58.1]} 34... Rb7 {[%clk
0:02:55.7]} 35. Kf2 {[%clk 0:02:55.4]} 35... Rxb6 {[%clk 0:02:54.9]} 36. Rb1
{[%clk 0:02:54.5]} 36... Rdb8 {[%clk 0:02:54]} 37. Kg3 {[%clk 0:02:51.5]} 37...
Rb5 {[%clk 0:02:46.5]} 38. f4 {[%clk 0:02:49.7]} 38... f5 {[%clk 0:02:42.6]} 39.
Bh3 {[%clk 0:02:43.5]} 39... fxg4 {[%clk 0:02:40.2]} 40. Bxg4 {[%clk 0:02:42.7]}
40... Bxg4 {[%clk 0:02:39.6]} 41. Kxg4 {[%clk 0:02:41.9]} 41... Kf6 {[%clk
0:02:39]} 42. Rc1 {[%clk 0:02:33.7]} 42... R8b6 {[%clk 0:02:34.5]} 43. Rc5
{[%clk 0:02:27.9]} 43... Rxb4 {[%clk 0:02:30.4]} 44. Rdxd5 {[%clk 0:02:23.7]}
44... Re6 {[%clk 0:02:21.9]} 45. Rg5 {[%clk 0:02:15.6]} 45... Rbe4 {[%clk
0:02:17.5]} 46. Ra5 {[%clk 0:02:13.6]} 46... Rc4 {[%clk 0:02:13.5]} 47. Kf3
{[%clk 0:02:08.3]} 47... Rc3+ {[%clk 0:02:12.2]} 48. Kg4 {[%clk 0:02:06.8]}
48... Rc4 {[%clk 0:02:11.5]} 49. Rge5 {[%clk 0:01:55.7]} 49... Rxe5 {[%clk
0:02:08.5]} 50. Rxe5 {[%clk 0:01:54.3]} 50... Rc6 {[%clk 0:02:07.2]} 51. Ra5
{[%clk 0:01:52.9]} 51... Rd6 {[%clk 0:02:05.9]} 52. Kf3 {[%clk 0:01:51.7]} 52...
Rd3+ {[%clk 0:02:04.9]} 53. Ke4 {[%clk 0:01:50.7]} 53... Rd6 {[%clk 0:02:02.7]}
54. Rb5 {[%clk 0:01:49]} 54... Re6+ {[%clk 0:02:02]} 55. Kf3 {[%clk 0:01:47.9]}
55... Rd6 {[%clk 0:02:01.2]} 56. Ke3 {[%clk 0:01:44.3]} 56... Re6+ {[%clk
0:02:00.4]} 57. Kd4 {[%clk 0:01:43.2]} 57... Rd6+ {[%clk 0:01:59.8]} 58. Ke4
{[%clk 0:01:41.2]} 58... Re6+ {[%clk 0:01:59.1]} 59. Re5 {[%clk 0:01:38.5]}
59... Rxe5+ {[%clk 0:01:57.2]} 60. fxe5+ {[%clk 0:01:37.7]} 60... Ke6 {[%clk
0:01:55.9]} 61. Kd4 {[%clk 0:01:36.8]} 61... g5 {[%clk 0:01:55.2]} 62. Ke4
{[%clk 0:01:36]} 62... g4 {[%clk 0:01:54.7]} 63. Kf4 {[%clk 0:01:32.4]} 63... g3
{[%clk 0:01:53.9]} 64. Kf3 {[%clk 0:00:37]} 64... Kxe5 {[%clk 0:01:53.8]} 65.
Ke3 {[%clk 0:00:26.1]} 65... Kf5 {[%clk 0:01:51.9]} 66. Kf3 {[%clk 0:00:13.2]}
66... Kg5 {[%clk 0:01:51]} 67. Kxg3 {[%clk 0:00:01]} 1/2-1/2

[Event "Live Chess"]
[Site "Chess.com"]
[Date "2023.05.20"]
[Round "-"]
[White "parcellforce"]
[Black "Singapourfeuj"]
[Result "0-1"]
[WhiteElo "1371"]
[BlackElo "2252"]
[TimeControl "300"]
[EndTime "14:22:59 PDT"]
[Termination "Singapourfeuj won by resignation"]

1. d4 {[%clk 0:04:59.5]} 1... Nf6 {[%clk 0:04:58.8]} 2. c4 {[%clk 0:04:59.4]}
2... g6 {[%clk 0:04:56.6]} 3. Nc3 {[%clk 0:04:59]} 3... Bg7 {[%clk 0:04:55.8]}
4. Nf3 {[%clk 0:04:58.8]} 4... O-O {[%clk 0:04:53.6]} 5. e4 {[%clk 0:04:57.6]}
5... d6 {[%clk 0:04:52.7]} 6. Bd3 {[%clk 0:04:57.3]} 6... Nc6 {[%clk 0:04:50.9]}
7. Bc2 {[%clk 0:04:56.1]} 7... Nh5 {[%clk 0:04:48.9]} 8. O-O {[%clk 0:04:48.9]}
8... e5 {[%clk 0:04:47.1]} 9. d5 {[%clk 0:04:48.1]} 9... Nb4 {[%clk 0:04:45.2]}
10. Bb1 {[%clk 0:04:38.6]} 10... Bg4 {[%clk 0:04:42.4]} 11. a3 {[%clk
0:04:36.7]} 11... Na6 {[%clk 0:04:40.9]} 12. b4 {[%clk 0:04:33.4]} 12... Qf6
{[%clk 0:04:39.4]} 13. Bd3 {[%clk 0:04:03.4]} 13... Bxf3 {[%clk 0:04:31]} 14.
Qxf3 {[%clk 0:04:02.2]} 14... Qxf3 {[%clk 0:04:29.5]} 15. gxf3 {[%clk
0:04:02.1]} 15... Nb8 {[%clk 0:04:26.5]} 16. Kh1 {[%clk 0:04:00.1]} 16... Nd7
{[%clk 0:04:24.8]} 17. Nb5 {[%clk 0:03:59.1]} 17... Rfc8 {[%clk 0:04:22.2]} 18.
Rg1 {[%clk 0:03:55.6]} 18... a6 {[%clk 0:04:21]} 19. Nc3 {[%clk 0:03:54.8]}
19... a5 {[%clk 0:04:18.3]} 20. Bb2 {[%clk 0:03:48.6]} 20... axb4 {[%clk
0:04:13.3]} 21. axb4 {[%clk 0:03:48.5]} 21... c6 {[%clk 0:04:12.2]} 22. Ne2
{[%clk 0:03:47.4]} 22... cxd5 {[%clk 0:04:10.2]} 23. exd5 {[%clk 0:03:43.9]}
23... f5 {[%clk 0:04:06.4]} 24. Bc3 {[%clk 0:03:24.8]} 24... Rxa1 {[%clk
0:03:56.9]} 25. Rxa1 {[%clk 0:03:20.9]} 25... b5 {[%clk 0:03:56]} 26. cxb5
{[%clk 0:03:16.8]} 26... Nb6 {[%clk 0:03:54.4]} 27. Bd2 {[%clk 0:03:08.5]} 27...
e4 {[%clk 0:03:51.1]} 28. fxe4 {[%clk 0:03:06.9]} 28... Bxa1 {[%clk 0:03:48.1]}
29. exf5 {[%clk 0:03:05.5]} 29... Nxd5 {[%clk 0:03:46.6]} 30. fxg6 {[%clk
0:03:04.3]} 30... hxg6 {[%clk 0:03:45.7]} 31. Bxg6 {[%clk 0:03:03.3]} 31... Nhf6
{[%clk 0:03:44.3]} 32. Bd3 {[%clk 0:02:57.4]} 32... Be5 {[%clk 0:03:39.6]} 33.
f4 {[%clk 0:02:53.3]} 33... Bb2 {[%clk 0:03:33.9]} 34. Ng3 {[%clk 0:02:49.7]}
34... Bc3 {[%clk 0:03:32.1]} 35. Bxc3 {[%clk 0:02:36.1]} 35... Nxc3 {[%clk
0:03:31]} 36. Nf5 {[%clk 0:02:34]} 36... Rb8 {[%clk 0:03:17]} 37. Nxd6 {[%clk
0:02:31.5]} 37... Rd8 {[%clk 0:03:11.8]} 38. Bc4+ {[%clk 0:02:26.6]} 38... Kf8
{[%clk 0:03:11]} 39. Nf5 {[%clk 0:02:22.7]} 39... Nh5 {[%clk 0:03:08.7]} 40. Nd4
{[%clk 0:02:21.8]} 40... Rxd4 {[%clk 0:03:06.9]} 0-1

[Event "Live Chess"]
[Site "Chess.com"]
[Date "2023.05.20"]
[Round "-"]
[White "bristolunichess"]
[Black "BostonStrangler"]
[Result "1-0"]
[WhiteElo "1839"]
[BlackElo "2053"]
[TimeControl "300"]
[EndTime "14:23:10 PDT"]
[Termination "bristolunichess won by resignation"]

1. e4 {[%clk 0:04:56.4]} 1... c5 {[%clk 0:04:58.9]} 2. d4 {[%clk 0:04:53.8]}
2... cxd4 {[%clk 0:04:57.5]} 3. c3 {[%clk 0:04:51.8]} 3... g6 {[%clk 0:04:53.9]}
4. Nf3 {[%clk 0:04:49.1]} 4... Bg7 {[%clk 0:04:49.7]} 5. e5 {[%clk 0:04:41.7]}
5... dxc3 {[%clk 0:04:46]} 6. Nxc3 {[%clk 0:04:40.8]} 6... Nc6 {[%clk
0:04:45.6]} 7. Bc4 {[%clk 0:04:37.4]} 7... Nxe5 {[%clk 0:04:07.7]} 8. Nxe5
{[%clk 0:04:33.4]} 8... Bxe5 {[%clk 0:04:05.7]} 9. Bxf7+ {[%clk 0:04:24.6]} 9...
Kxf7 {[%clk 0:04:04.7]} 10. Qd5+ {[%clk 0:04:22.4]} 10... e6 {[%clk 0:04:02.6]}
11. Qxe5 {[%clk 0:04:21.5]} 11... Qf6 {[%clk 0:04:02]} 12. f4 {[%clk 0:04:13.1]}
12... Qxe5+ {[%clk 0:03:54.2]} 13. fxe5 {[%clk 0:04:12.2]} 13... Ne7 {[%clk
0:03:53.8]} 14. g4 {[%clk 0:04:08.9]} 14... Kg7 {[%clk 0:03:52.6]} 15. Bg5
{[%clk 0:04:06.8]} 15... Ng8 {[%clk 0:03:45.9]} 16. O-O-O {[%clk 0:03:48.2]}
16... h6 {[%clk 0:03:43]} 17. Bd8 {[%clk 0:03:46.1]} 17... Kf7 {[%clk
0:03:30.1]} 18. Rhf1+ {[%clk 0:03:31.2]} 18... Ke8 {[%clk 0:03:28.5]} 19. Bc7
{[%clk 0:03:26]} 19... Ne7 {[%clk 0:03:20.4]} 20. Ne4 {[%clk 0:03:21.4]} 20...
d5 {[%clk 0:03:06.4]} 21. exd6 {[%clk 0:02:51.6]} 21... Nd5 {[%clk 0:02:59.8]}
22. Rxd5 {[%clk 0:02:37.3]} 22... exd5 {[%clk 0:02:58.5]} 23. Nf6+ {[%clk
0:02:35]} 23... Kf7 {[%clk 0:02:55.2]} 24. d7 {[%clk 0:02:22.4]} 24... Bxd7
{[%clk 0:02:51.2]} 25. Nxd7+ {[%clk 0:02:22.3]} 25... Ke6 {[%clk 0:02:46.8]} 26.
Nc5+ {[%clk 0:02:21.2]} 26... Ke7 {[%clk 0:02:45]} 27. Re1+ {[%clk 0:02:18.2]}
27... Kf7 {[%clk 0:02:43.2]} 28. Kd2 {[%clk 0:02:15.6]} 28... Rac8 {[%clk
0:02:40.5]} 29. Bd6 {[%clk 0:02:14.6]} 29... Rhe8 {[%clk 0:02:34.9]} 30. Rf1+
{[%clk 0:02:11.4]} 30... Kg7 {[%clk 0:02:32.5]} 31. Nd7 {[%clk 0:02:02.8]} 31...
Rcd8 {[%clk 0:02:08]} 32. Be5+ {[%clk 0:02:00.6]} 32... Kg8 {[%clk 0:01:43.4]}
33. Nf6+ {[%clk 0:01:59.8]} 33... Kf7 {[%clk 0:01:42.5]} 34. Nxe8+ {[%clk
0:01:54.5]} 34... Ke6 {[%clk 0:01:41.5]} 35. Nd6 {[%clk 0:01:23.9]} 1-0

[Event "Live Chess"]
[Site "Chess.com"]
[Date "2023.05.20"]
[Round "-"]
[White "OSmith06"]
[Black "MarkLim1"]
[Result "1/2-1/2"]
[WhiteElo "1658"]
[BlackElo "1665"]
[TimeControl "300"]
[EndTime "14:23:24 PDT"]
[Termination "Game drawn by agreement"]

1. e4 {[%clk 0:04:59.1]} 1... e6 {[%clk 0:04:58.6]} 2. Nf3 {[%clk 0:04:58.4]}
2... d5 {[%clk 0:04:57.7]} 3. exd5 {[%clk 0:04:57.3]} 3... exd5 {[%clk
0:04:56.9]} 4. d4 {[%clk 0:04:56.6]} 4... Bd6 {[%clk 0:04:56]} 5. Bd3 {[%clk
0:04:54.5]} 5... Nc6 {[%clk 0:04:53.6]} 6. h3 {[%clk 0:04:53]} 6... Nge7 {[%clk
0:04:52.5]} 7. c3 {[%clk 0:04:52.3]} 7... Bf5 {[%clk 0:04:51.5]} 8. Bxf5 {[%clk
0:04:50.4]} 8... Nxf5 {[%clk 0:04:50.7]} 9. Qe2+ {[%clk 0:04:47]} 9... Qe7
{[%clk 0:04:48.6]} 10. Qxe7+ {[%clk 0:04:41.8]} 10... Nfxe7 {[%clk 0:04:46.3]}
11. Be3 {[%clk 0:04:33.4]} 11... O-O-O {[%clk 0:04:42.7]} 12. Nbd2 {[%clk
0:04:31.2]} 12... Rde8 {[%clk 0:04:41.9]} 13. O-O-O {[%clk 0:04:26.5]} 13... Nf5
{[%clk 0:04:41]} 14. Ng5 {[%clk 0:04:14.7]} 14... Nxe3 {[%clk 0:04:33]} 15. fxe3
{[%clk 0:04:13.6]} 15... Rxe3 {[%clk 0:04:31.7]} 16. Nxf7 {[%clk 0:04:11.5]}
16... Rf8 {[%clk 0:04:30.3]} 17. Nxd6+ {[%clk 0:04:05.3]} 17... cxd6 {[%clk
0:04:29]} 18. Nf3 {[%clk 0:04:03]} 18... Re2 {[%clk 0:04:24]} 19. Rd2 {[%clk
0:03:49.7]} 19... Rfe8 {[%clk 0:04:22.2]} 20. Kd1 {[%clk 0:03:40.7]} 20... R2e3
{[%clk 0:04:16.5]} 21. Re1 {[%clk 0:03:34]} 21... Na5 {[%clk 0:04:13.4]} 22.
Rxe3 {[%clk 0:03:28.1]} 22... Rxe3 {[%clk 0:04:12.1]} 23. Re2 {[%clk 0:03:23.8]}
23... Nc4 {[%clk 0:04:08.4]} 24. b3 {[%clk 0:03:14.1]} 24... Rxe2 {[%clk
0:04:05]} 25. Kxe2 {[%clk 0:03:14]} 25... Nb6 {[%clk 0:04:03.2]} 26. Ng5 {[%clk
0:03:07.2]} 26... h6 {[%clk 0:04:01.5]} 27. Ne6 {[%clk 0:03:01.4]} 27... g5
{[%clk 0:03:59.5]} 28. Ng7 {[%clk 0:02:52.9]} 28... Kd7 {[%clk 0:03:57.7]} 29.
Nf5 {[%clk 0:02:51.3]} 29... h5 {[%clk 0:03:54.4]} 30. Ke3 {[%clk 0:02:37.5]}
30... h4 {[%clk 0:03:48.4]} 31. Kf3 {[%clk 0:02:29.6]} 31... Ke6 {[%clk
0:03:46.3]} 32. Kg4 {[%clk 0:02:27.5]} 32... Nd7 {[%clk 0:03:40.8]} 33. Kxg5
{[%clk 0:02:20.5]} 33... Nf6 {[%clk 0:03:39.3]} 34. Nxh4 {[%clk 0:01:55.2]}
34... Ne4+ {[%clk 0:03:37.2]} 35. Kf4 {[%clk 0:01:51.4]} 35... Nxc3 {[%clk
0:03:36.5]} 36. a3 {[%clk 0:01:42]} 36... Nb5 {[%clk 0:03:33.6]} 37. Ke3 {[%clk
0:01:32.9]} 37... Nxa3 {[%clk 0:03:31.3]} 38. g4 {[%clk 0:01:31.6]} 38... a5
{[%clk 0:03:24.2]} 39. g5 {[%clk 0:01:29.2]} 39... Kf7 {[%clk 0:03:22.8]} 40.
Nf5 {[%clk 0:01:24.2]} 40... Kg6 {[%clk 0:03:15.9]} 41. Nxd6 {[%clk 0:01:23.1]}
41... Kxg5 {[%clk 0:03:14.9]} 42. Nxb7 {[%clk 0:01:20]} 42... Kh4 {[%clk
0:03:04.7]} 43. Nxa5 {[%clk 0:01:18.1]} 43... Kxh3 {[%clk 0:03:03.6]} 44. b4
{[%clk 0:01:13.8]} 44... Kg4 {[%clk 0:03:01.1]} 45. Nc6 {[%clk 0:01:11.2]} 45...
Kf5 {[%clk 0:02:58.1]} 46. Kd3 {[%clk 0:01:02.2]} 46... Ke6 {[%clk 0:02:55.3]}
47. Kc3 {[%clk 0:00:59.2]} 47... Kd6 {[%clk 0:02:53.7]} 48. Ne5 {[%clk
0:00:56.9]} 48... Nb5+ {[%clk 0:02:51.4]} 49. Kd3 {[%clk 0:00:55]} 49... Na3
{[%clk 0:02:48.1]} 50. Nf7+ {[%clk 0:00:48.8]} 50... Kc6 {[%clk 0:02:46.6]} 51.
Nd8+ {[%clk 0:00:43.5]} 51... Kb5 {[%clk 0:02:45.3]} 52. Kc3 {[%clk 0:00:39]}
52... Nb1+ {[%clk 0:02:37.4]} 53. Kc2 {[%clk 0:00:34.4]} 53... Na3+ {[%clk
0:02:36.2]} 54. Kb2 {[%clk 0:00:30.8]} 54... Nc4+ {[%clk 0:02:33.7]} 55. Kc3
{[%clk 0:00:29.7]} 1/2-1/2

[Event "Live Chess"]
[Site "Chess.com"]
[Date "2023.05.20"]
[Round "-"]
[White "LiamClery2020"]
[Black "lucaskk818"]
[Result "1-0"]
[WhiteElo "2085"]
[BlackElo "1894"]
[TimeControl "300"]
[EndTime "14:23:29 PDT"]
[Termination "LiamClery2020 won by resignation"]

1. e4 {[%clk 0:04:59.3]} 1... e6 {[%clk 0:04:59]} 2. d4 {[%clk 0:04:57.5]} 2...
d5 {[%clk 0:04:58.5]} 3. Nd2 {[%clk 0:04:55.4]} 3... c5 {[%clk 0:04:56.7]} 4. c3
{[%clk 0:04:54.1]} 4... cxd4 {[%clk 0:04:54.7]} 5. cxd4 {[%clk 0:04:53.1]} 5...
dxe4 {[%clk 0:04:53]} 6. Nxe4 {[%clk 0:04:53]} 6... Nf6 {[%clk 0:04:52.2]} 7.
Nxf6+ {[%clk 0:04:44.3]} 7... Qxf6 {[%clk 0:04:52.1]} 8. Nf3 {[%clk 0:04:43.1]}
8... b6 {[%clk 0:04:50.3]} 9. Bb5+ {[%clk 0:04:35.1]} 9... Bd7 {[%clk
0:04:46.2]} 10. Bxd7+ {[%clk 0:04:33.7]} 10... Nxd7 {[%clk 0:04:46.1]} 11. Qb3
{[%clk 0:04:31.8]} 11... Bb4+ {[%clk 0:04:39.4]} 12. Qxb4 {[%clk 0:04:27.4]} 1-0

[Event "Live Chess"]
[Site "Chess.com"]
[Date "2023.05.20"]
[Round "-"]
[White "KGreenGator"]
[Black "KeithArkell"]
[Result "0-1"]
[WhiteElo "1789"]
[BlackElo "2618"]
[TimeControl "300"]
[EndTime "14:23:30 PDT"]
[Termination "KeithArkell won by checkmate"]

1. c4 {[%clk 0:04:59.4]} 1... e6 {[%clk 0:04:58.8]} 2. Nc3 {[%clk 0:04:58.2]}
2... d5 {[%clk 0:04:58]} 3. cxd5 {[%clk 0:04:56.7]} 3... exd5 {[%clk 0:04:57.3]}
4. d4 {[%clk 0:04:56]} 4... Nf6 {[%clk 0:04:56.7]} 5. Nf3 {[%clk 0:04:54.5]}
5... c6 {[%clk 0:04:55.8]} 6. e3 {[%clk 0:04:52.9]} 6... Bg4 {[%clk 0:04:54.6]}
7. Be2 {[%clk 0:04:51.3]} 7... Nbd7 {[%clk 0:04:53.8]} 8. h3 {[%clk 0:04:50]}
8... Bxf3 {[%clk 0:04:52]} 9. Bxf3 {[%clk 0:04:48.9]} 9... Bd6 {[%clk
0:04:50.6]} 10. O-O {[%clk 0:04:47.3]} 10... O-O {[%clk 0:04:49.8]} 11. Re1
{[%clk 0:04:46.1]} 11... Re8 {[%clk 0:04:49.3]} 12. e4 {[%clk 0:04:43.3]} 12...
dxe4 {[%clk 0:04:47.9]} 13. Nxe4 {[%clk 0:04:41.9]} 13... Nxe4 {[%clk
0:04:47.1]} 14. Rxe4 {[%clk 0:04:40.2]} 14... Rxe4 {[%clk 0:04:45.3]} 15. Bxe4
{[%clk 0:04:39.5]} 15... Nf6 {[%clk 0:04:44.6]} 16. Bc2 {[%clk 0:04:37.5]} 16...
Qc7 {[%clk 0:04:43.5]} 17. Be3 {[%clk 0:04:35.3]} 17... Rd8 {[%clk 0:04:41.8]}
18. Qf3 {[%clk 0:04:29.7]} 18... Nd5 {[%clk 0:04:37.8]} 19. Qe4 {[%clk
0:04:21.3]} 19... g6 {[%clk 0:04:36.7]} 20. Rd1 {[%clk 0:04:18]} 20... Bh2+
{[%clk 0:04:35.1]} 21. Kf1 {[%clk 0:04:16.1]} 21... Bf4 {[%clk 0:04:34.1]} 22.
Bb3 {[%clk 0:04:09]} 22... Bxe3 {[%clk 0:04:21.5]} 23. Bxd5 {[%clk 0:03:56.8]}
23... Rxd5 {[%clk 0:04:08.5]} 24. fxe3 {[%clk 0:03:52.8]} 24... Qg3 {[%clk
0:04:03.3]} 25. Qf3 {[%clk 0:03:46.8]} 25... Rf5 {[%clk 0:04:02]} 26. Ke2 {[%clk
0:03:45.5]} 26... Rxf3 {[%clk 0:04:00.1]} 27. gxf3 {[%clk 0:03:44.9]} 27... Qg2+
{[%clk 0:03:59.6]} 28. Kd3 {[%clk 0:03:43.6]} 28... Qxf3 {[%clk 0:03:59]} 29.
Rd2 {[%clk 0:03:41.8]} 29... Qf5+ {[%clk 0:03:57.6]} 30. Kc3 {[%clk 0:03:39.1]}
30... Qe4 {[%clk 0:03:56.4]} 31. Rd3 {[%clk 0:03:37.5]} 31... g5 {[%clk
0:03:55.1]} 32. b4 {[%clk 0:03:35.5]} 32... h5 {[%clk 0:03:53.9]} 33. a4 {[%clk
0:03:33.7]} 33... g4 {[%clk 0:03:53.2]} 34. hxg4 {[%clk 0:03:32]} 34... hxg4
{[%clk 0:03:52.5]} 35. b5 {[%clk 0:03:30.4]} 35... g3 {[%clk 0:03:51.9]} 36. Rd2
{[%clk 0:03:27]} 36... Qxe3+ {[%clk 0:03:50.1]} 37. Rd3 {[%clk 0:03:26.7]} 37...
Qxd3+ {[%clk 0:03:49.2]} 38. Kxd3 {[%clk 0:03:25.6]} 38... g2 {[%clk 0:03:48.6]}
39. bxc6 {[%clk 0:03:24.3]} 39... bxc6 {[%clk 0:03:47.9]} 40. Kc4 {[%clk
0:03:23.6]} 40... g1=Q {[%clk 0:03:46.8]} 41. Kc5 {[%clk 0:03:23.3]} 41... Qe3
{[%clk 0:03:45.9]} 42. Kxc6 {[%clk 0:03:22.4]} 42... Qxd4 {[%clk 0:03:45.1]} 43.
a5 {[%clk 0:03:21.6]} 43... Qb4 {[%clk 0:03:43.5]} 44. a6 {[%clk 0:03:20]} 44...
Qb6+ {[%clk 0:03:42.4]} 45. Kd7 {[%clk 0:03:19.8]} 45... Qxa6 {[%clk 0:03:41.4]}
46. Kc7 {[%clk 0:03:19.4]} 46... Qb6+ {[%clk 0:03:40.6]} 47. Kc8 {[%clk
0:03:18.3]} 47... a5 {[%clk 0:03:39.7]} 48. Kd7 {[%clk 0:03:18]} 48... a4 {[%clk
0:03:39.2]} 49. Ke8 {[%clk 0:03:17.7]} 49... a3 {[%clk 0:03:38.4]} 50. Ke7
{[%clk 0:03:17.5]} 50... a2 {[%clk 0:03:38]} 51. Kd7 {[%clk 0:03:17.2]} 51...
a1=Q {[%clk 0:03:37.2]} 52. Ke8 {[%clk 0:03:16.8]} 52... Qa8+ {[%clk 0:03:35.1]}
53. Kd7 {[%clk 0:03:16]} 53... Qaa7+ {[%clk 0:03:34.4]} 54. Kc8 {[%clk
0:03:15.1]} 54... Qbb8# {[%clk 0:03:34.1]} 0-1

[Event "Live Chess"]
[Site "Chess.com"]
[Date "2023.05.20"]
[Round "-"]
[White "Goblinbasher"]
[Black "DRS44"]
[Result "1-0"]
[WhiteElo "1251"]
[BlackElo "1365"]
[TimeControl "300"]
[EndTime "14:23:33 PDT"]
[Termination "Goblinbasher won on time"]

1. e4 {[%clk 0:04:55.7]} 1... e5 {[%clk 0:04:44.9]} 2. Nc3 {[%clk 0:04:54.1]}
2... Nf6 {[%clk 0:04:39.6]} 3. f4 {[%clk 0:04:52.2]} 3... d5 {[%clk 0:04:15.1]}
4. fxe5 {[%clk 0:04:50.3]} 4... Nxe4 {[%clk 0:04:11.2]} 5. Qf3 {[%clk
0:04:48.8]} 5... Nxc3 {[%clk 0:04:05.8]} 6. bxc3 {[%clk 0:04:46.3]} 6... Bc5
{[%clk 0:03:54.8]} 7. d4 {[%clk 0:04:44.8]} 7... Bb6 {[%clk 0:03:45.9]} 8. Bd3
{[%clk 0:04:41.1]} 8... Nc6 {[%clk 0:03:29.8]} 9. Ne2 {[%clk 0:04:38.8]} 9...
Ne7 {[%clk 0:03:19.4]} 10. O-O {[%clk 0:04:36.5]} 10... O-O {[%clk 0:03:11.7]}
11. Ng3 {[%clk 0:04:13.7]} 11... Ng6 {[%clk 0:02:40.9]} 12. Ba3 {[%clk 0:03:58]}
12... Re8 {[%clk 0:02:05.2]} 13. Qxf7+ {[%clk 0:03:46.1]} 13... Kh8 {[%clk
0:01:57.1]} 14. Bxg6 {[%clk 0:02:58.2]} 14... hxg6 {[%clk 0:00:41.9]} 15. Qxg6
{[%clk 0:02:24.2]} 15... Be6 {[%clk 0:00:19.5]} 16. Nh5 {[%clk 0:02:16.8]} 16...
Qd7 {[%clk 0:00:05.4]} 17. Nf4 {[%clk 0:02:01.7]} 1-0